bitfinex-derivatives/quotes_BTCF0:USTF0_20250117
["timestamp","ask_amount","ask_price","bid_price","bid_amount"]
[1737099243394,0.92394649,101750.0,101740.0,0.17558719]
[1737099243395,0.92699436,101750.0,101740.0,0.17558719]
[1737099243597,0.92699436,101750.0,101740.0,0.06227219]
[1737099243787,0.92699436,101750.0,101720.0,0.29254392]
[1737099243983,0.59570436,101730.0,101720.0,0.29254392]
[1737099247402,0.59570436,101730.0,101710.0,0.35494392]
[1737099247700,0.14203468,101720.0,101710.0,0.37265575]
[1737099248399,0.14203468,101720.0,101710.0,0.37265387]
[1737099248599,0.14203468,101720.0,101710.0,0.36724079]
[1737099249192,0.50283468,101720.0,101710.0,0.35494392]
[1737099249395,0.50283468,101720.0,101710.0,0.37031577]
[1737099249604,0.59570836,101720.0,101710.0,0.14346156]
[1737099249796,0.59580836,101720.0,101710.0,0.14346156]
[1737099249996,0.50293468,101720.0,101710.0,0.12808971]
[1737099250197,0.14203468,101720.0,101710.0,0.12808971]
[1737099250407,0.049166,101710.0,101700.0,0.48387368]
[1737099250598,0.049166,101710.0,101700.0,0.50159029]
[1737099250902,0.049166,101710.0,101700.0,0.40871661]
[1737099251100,0.14203968,101710.0,101700.0,0.40871375]
[1737099251410,0.14203968,101710.0,101700.0,0.40329724]
[1737099251604,0.049166,101710.0,101700.0,0.40329724]
[1737099252005,0.049166,101710.0,101700.0,0.75434994]
[1737099252206,0.049166,101710.0,101700.0,0.7420527]
[1737099252409,0.049166,101710.0,101700.0,0.89639459]
[1737099252716,0.049166,101710.0,101700.0,0.90180685]
[1737099252901,0.049166,101710.0,101700.0,0.96560685]
[1737099253101,0.049166,101710.0,101700.0,0.87273317]
[1737099253997,0.049166,101710.0,101700.0,0.87273305]
[1737099255309,0.049166,101710.0,101700.0,0.52168035]
[1737099255804,0.049166,101710.0,101700.0,0.61455403]
[1737099255999,0.049166,101710.0,101700.0,0.60914177]
[1737099256206,0.049166,101710.0,101700.0,0.61456426]
[1737099256608,0.049166,101710.0,101700.0,0.61456418]
[1737099257108,0.049166,101710.0,101700.0,1.06405081]
[1737099257308,0.049166,101710.0,101700.0,0.70325081]
[1737099257606,0.049166,101710.0,101700.0,1.06405081]
[1737099258103,0.049166,101710.0,101700.0,1.06405118]
[1737099263205,0.049166,101710.0,101700.0,0.9220065]
[1737099263407,0.1101114,101710.0,101700.0,0.9829519]
[1737099264311,0.1101114,101710.0,101700.0,0.99832332]
[1737099265415,0.1101114,101710.0,101700.0,0.57657792]
[1737099265612,0.1710568,101710.0,101700.0,0.55885805]
[1737099266305,0.5318568,101710.0,101700.0,0.55885805]
[1737099267510,0.4709114,101710.0,101700.0,0.55885805]
[1737099267700,0.4709114,101710.0,101700.0,0.90991075]
[1737099268916,0.4709114,101710.0,101700.0,0.55885805]
[1737099269306,0.50286033,101710.0,101700.0,0.55885805]
[1737099269502,0.50286033,101710.0,101700.0,0.90991075]
[1737099269707,0.50286033,101710.0,101700.0,0.92762884]
[1737099270805,0.59575466,101710.0,101700.0,0.49505805]
[1737099271115,0.59575466,101710.0,101700.0,0.25283242]
[1737099271317,0.59585466,101710.0,101700.0,0.25283242]
[1737099271616,0.59585466,101710.0,101700.0,4.2e-07]
[1737099272116,0.59585466,101710.0,101680.0,0.0634]
[1737099272306,0.50287033,101690.0,101680.0,0.08110872]
[1737099272506,0.50287033,101690.0,101680.0,0.0634]
[1737099272706,0.50287033,101690.0,101680.0,0.08110636]
[1737099272906,0.50287033,101690.0,101680.0,0.121085]
[1737099273317,0.50287033,101690.0,101680.0,0.10337864]
[1737099275417,0.50287033,101690.0,101680.0,0.0634]
[1737099276514,0.50287033,101690.0,101670.0,0.0332]
[1737099276515,0.049181,101680.0,101670.0,0.0332]
[1737099276717,0.50287533,101680.0,101670.0,0.0332]
[1737099278109,0.049186,101670.0,101660.0,0.06677534]
[1737099278310,0.50288033,101670.0,101660.0,0.09997534]
[1737099279011,0.50288033,101670.0,101660.0,0.13996232]
[1737099279413,0.59577466,101670.0,101660.0,9.8e-07]
[1737099280010,0.62597466,101670.0,101660.0,9.8e-07]
[1737099280609,0.62597466,101670.0,101640.0,0.3881024]
[1737099280919,0.50288933,101650.0,101640.0,0.3881024]
[1737099281224,0.50288933,101650.0,101640.0,0.0955]
[1737099282110,0.86368933,101650.0,101640.0,0.0955]
[1737099283216,0.85809631,101650.0,101640.0,0.0955]
[1737099285819,0.85809631,101650.0,101640.0,0.0642]
[1737099288120,0.86800346,101650.0,101640.0,0.0642]
[1737099289924,0.85809631,101650.0,101640.0,0.0642]
[1737099290625,0.65133356,101650.0,101640.0,0.0642]
[1737099295127,0.74422789,101650.0,101640.0,0.0642]
[1737099296519,0.049205,101630.0,101620.0,0.69509081]
[1737099296716,0.14209933,101630.0,101620.0,0.69509081]
[1737099297529,0.14209933,101630.0,101620.0,0.6852024]
[1737099297830,0.14209933,101630.0,101620.0,0.7252031]
[1737099298123,0.09289433,101630.0,101620.0,1.17508185]
[1737099298328,0.45369433,101640.0,101620.0,1.17508185]
[1737099298525,0.14209933,101630.0,101620.0,1.17508185]
[1737099298737,0.09289433,101630.0,101620.0,1.52613455]
[1737099298922,0.14209933,101630.0,101620.0,1.52613455]
[1737099299223,0.14209933,101630.0,101620.0,1.17508185]
[1737099299721,0.14209933,101630.0,101620.0,1.23778185]
[1737099300331,0.14209933,101630.0,101620.0,0.87698185]
[1737099301532,0.50289933,101630.0,101620.0,0.08113307]
[1737099302522,0.50289933,101630.0,101620.0,0.06574819]
[1737099302726,0.50289933,101630.0,101610.0,0.26563221]
[1737099302922,0.50290433,101620.0,101610.0,0.26563221]
[1737099303327,0.50290433,101620.0,101610.0,0.11992721]
[1737099303328,0.65839866,101620.0,101610.0,0.11992721]
[1737099304328,0.049215,101610.0,101600.0,0.1627]
[1737099304534,0.59580366,101610.0,101600.0,0.1627]
[1737099307138,0.59580366,101610.0,101600.0,0.1]
[1737099308526,0.59580366,101610.0,101600.0,1e-06]
[1737099308835,0.50290933,101610.0,101600.0,1e-06]
[1737099309031,0.50290933,101610.0,101600.0,0.064201]
[1737099309432,0.59580366,101610.0,101600.0,0.064201]
[1737099309827,0.50290933,101610.0,101600.0,0.064201]
[1737099310338,0.59580366,101610.0,101600.0,0.064201]
[1737099312643,0.59580366,101610.0,101600.0,1e-06]
[1737099317646,0.14210933,101610.0,101600.0,1e-06]
[1737099317833,0.45369433,101630.0,101600.0,0.45912687]
[1737099318146,0.04921,101620.0,101610.0,0.4235]
[1737099318443,0.14210433,101620.0,101610.0,0.42893154]
[1737099318636,0.14210433,101620.0,101610.0,0.43888785]
[1737099319036,0.14210433,101620.0,101610.0,0.88881758]
[1737099320258,0.14210433,101620.0,101610.0,1.23987028]
[1737099320549,0.04921,101620.0,101610.0,1.23987028]
[1737099320749,0.14210433,101620.0,101610.0,0.88881758]
[1737099321251,0.14210433,101620.0,101610.0,0.52801758]
[1737099321435,0.14210433,101620.0,101610.0,0.51262973]
[1737099321630,0.14210433,101620.0,101610.0,0.0627]
[1737099326051,0.50290433,101620.0,101610.0,0.0627]
[1737099326243,0.59579866,101620.0,101610.0,0.0627]
[1737099326445,0.50290433,101620.0,101610.0,0.0627]
[1737099326950,0.59579866,101620.0,101610.0,0.0627]
[1737099327151,0.50290433,101620.0,101610.0,0.0627]
[1737099327756,0.59579866,101620.0,101610.0,0.0627]
[1737099327953,0.50290433,101620.0,101610.0,0.0627]
[1737099328250,0.59579866,101620.0,101610.0,0.0627]
[1737099328752,0.59579866,101620.0,101610.0,0.06275378]
[1737099328951,0.50290433,101620.0,101610.0,0.06275378]
[1737099329543,0.59579866,101620.0,101610.0,0.06275378]
[1737099330847,0.049215,101610.0,101600.0,1e-06]
[1737099331047,0.59580366,101610.0,101600.0,1e-06]
[1737099331246,0.65840366,101610.0,101600.0,1e-06]
[1737099342254,0.59580366,101610.0,101600.0,1e-06]
[1737099342951,0.14210933,101610.0,101600.0,1e-06]
[1737099343258,0.14210933,101610.0,101600.0,0.452601]
[1737099343958,0.049215,101610.0,101600.0,0.452601]
[1737099344159,0.14210933,101610.0,101600.0,0.452601]
[1737099347059,0.23500366,101610.0,101600.0,0.452601]
[1737099348253,0.14210933,101610.0,101600.0,0.452601]
[1737099350666,0.23500366,101610.0,101600.0,0.452601]
[1737099351963,0.14210933,101610.0,101600.0,0.452601]
[1737099356465,0.14210933,101610.0,101600.0,0.46798958]
[1737099364472,0.14210933,101610.0,101600.0,0.70296378]
[1737099365571,0.049204,101640.0,101610.0,0.049212]
[1737099365875,0.049204,101640.0,101630.0,0.09289433]
[1737099366074,0.049204,101640.0,101620.0,0.59650333]
[1737099366468,0.049205,101630.0,101620.0,0.4544]
[1737099366663,0.14209933,101630.0,101620.0,0.4544]
[1737099367376,0.14209933,101630.0,101620.0,0.86543591]
[1737099368671,0.049205,101630.0,101620.0,0.86543591]
[1737099368977,0.14209933,101630.0,101620.0,0.86543591]
[1737099369479,0.14209933,101630.0,101620.0,0.6893742]
[1737099372084,0.14209933,101630.0,101620.0,0.63045748]
[1737099373579,0.14209933,101630.0,101620.0,0.59965748]
[1737099375178,0.14209933,101630.0,101620.0,0.23885748]
[1737099375179,0.50289933,101630.0,101620.0,0.23885748]
[1737099376289,0.50289933,101630.0,101620.0,0.17605748]
[1737099376586,0.59949933,101630.0,101620.0,0.17605748]
[1737099378183,0.04921,101620.0,101610.0,0.77183168]
[1737099378484,0.14210433,101620.0,101610.0,0.77183168]
[1737099381689,0.14210433,101620.0,101610.0,0.5957742]
[1737099382685,0.59579866,101620.0,101610.0,0.2349742]
[1737099383483,0.59579866,101620.0,101610.0,2e-07]
[1737099383789,0.59579866,101620.0,101600.0,0.29381908]
[1737099383790,0.049215,101610.0,101600.0,0.29381908]
[1737099383990,0.69160366,101610.0,101600.0,0.29381908]
[1737099384189,0.69160366,101610.0,101600.0,0.17624519]
[1737099385691,0.69160366,101610.0,101600.0,1e-06]
[1737099390504,0.69160366,101610.0,101580.0,0.0646]
[1737099390505,0.049224,101590.0,101580.0,0.0646]
[1737099390798,0.14211833,101590.0,101580.0,0.0646]
[1737099392201,0.23501266,101590.0,101580.0,0.0646]
[1737099393699,0.59581266,101590.0,101580.0,0.0646]
[1737099396291,0.6056982,101590.0,101580.0,0.0646]
[1737099396499,0.51280387,101590.0,101580.0,0.0646]
[1737099398201,0.6056982,101590.0,101580.0,0.0646]
[1737099398394,0.049234,101570.0,101560.0,0.5742208]
[1737099398594,0.14212833,101570.0,101560.0,0.6099208]
[1737099399506,0.14212833,101570.0,101560.0,0.43367661]
[1737099399803,0.14212833,101570.0,101560.0,0.46947661]
[1737099400796,0.14212833,101570.0,101560.0,0.48487102]
[1737099400997,0.14212833,101570.0,101560.0,0.49334368]
[1737099401397,0.14212833,101570.0,101560.0,0.47794927]
[1737099402198,0.14212833,101570.0,101560.0,0.468]
[1737099403897,0.14212833,101570.0,101560.0,0.1072]
[1737099404103,0.50292833,101570.0,101560.0,0.1072]
[1737099404901,0.50292833,101570.0,101560.0,0.0715]
[1737099405303,0.50292833,101570.0,101560.0,0.0358]
[1737099405903,0.51289541,101570.0,101560.0,0.0358]
[1737099406412,0.60578974,101570.0,101560.0,0.0358]
[1737099406708,0.51289541,101570.0,101560.0,0.0358]
[1737099407609,0.71853598,101570.0,101560.0,0.0358]
[1737099407908,0.049244,101550.0,101540.0,0.07783212]
[1737099408105,0.50293833,101550.0,101540.0,0.07783212]
[1737099409210,0.50293833,101550.0,101540.0,0.11223212]
[1737099410405,0.59583266,101550.0,101540.0,0.11223212]
[1737099410605,0.59583266,101550.0,101540.0,0.1025]
[1737099415010,0.95663266,101550.0,101540.0,0.1025]
[1737099415406,0.96674873,101550.0,101540.0,0.1025]
[1737099417015,1.1723893,101550.0,101540.0,0.1025]
[1737099417219,1.1723893,101550.0,101520.0,0.96372]
[1737099417425,0.14214733,101530.0,101520.0,1.00052]
[1737099418121,0.14214733,101530.0,101520.0,1.04055901]
[1737099419213,0.14214733,101530.0,101520.0,1.01591962]
[1737099420019,0.14214733,101530.0,101520.0,1.02581485]
[1737099420427,0.14214733,101530.0,101520.0,1.05045454]
[1737099422419,0.14214733,101530.0,101520.0,1.05593931]
[1737099423224,0.14214733,101530.0,101520.0,0.52641931]
[1737099423430,0.14214733,101530.0,101520.0,0.52093454]
[1737099423829,0.23504166,101530.0,101520.0,0.16013454]
[1737099424019,0.14214733,101530.0,101520.0,0.15023931]
[1737099424324,0.59584166,101530.0,101520.0,0.15023931]
[1737099424532,0.59584166,101530.0,101520.0,0.0368]
[1737099424713,0.59584166,101530.0,101510.0,0.00147755]
[1737099424920,0.23504666,101520.0,101500.0,0.54488436]
[1737099425225,0.23504666,101520.0,101500.0,0.14738436]
[1737099425226,0.14215733,101510.0,101500.0,0.14738436]
[1737099425419,0.14215733,101510.0,101500.0,0.2604288]
[1737099426619,0.14215733,101510.0,101500.0,0.6212288]
[1737099429024,0.14215733,101510.0,101500.0,0.59658607]
[1737099429927,0.14215733,101510.0,101500.0,0.60205935]
[1737099430131,0.14215733,101510.0,101500.0,0.66364883]
[1737099430337,0.09289433,101520.0,101500.0,0.74421558]
[1737099430633,0.04926,101520.0,101510.0,0.3608]
[1737099430933,0.04926,101520.0,101510.0,0.36626718]
[1737099431126,0.04926,101520.0,101510.0,0.45369433]
[1737099431330,0.04926,101520.0,101510.0,0.3608]
[1737099431532,0.58350524,101530.0,101510.0,0.52382787]
[1737099431729,0.14214933,101530.0,101520.0,0.1086]
[1737099432123,0.14214933,101530.0,101520.0,0.48480171]
[1737099432439,0.14214933,101530.0,101520.0,0.53952207]
[1737099432732,0.14214933,101530.0,101520.0,0.53952169]
[1737099433135,0.14214933,101530.0,101520.0,0.55184078]
[1737099433321,0.049255,101530.0,101520.0,0.63241602]
[1737099433520,0.049255,101530.0,101520.0,0.64473509]
[1737099433934,0.14214933,101530.0,101520.0,0.55184076]
[1737099435642,0.049255,101530.0,101520.0,0.64473509]
[1737099435827,0.09289433,101540.0,101520.0,0.65347632]
[1737099436030,0.14214333,101540.0,101530.0,0.3608]
[1737099436227,0.14214333,101540.0,101530.0,0.37858105]
[1737099436437,0.14214333,101540.0,101530.0,0.37857782]
[1737099436737,0.14214333,101540.0,101530.0,0.39397953]
[1737099439534,0.14214333,101540.0,101530.0,0.38166132]
[1737099439837,0.14214333,101540.0,101530.0,0.39397958]
[1737099441744,0.14214333,101540.0,101530.0,0.38166132]
[1737099443241,0.14214333,101540.0,101530.0,0.37620171]
[1737099448644,0.14214333,101540.0,101530.0,0.01540171]
[1737099452735,0.14214333,101540.0,101530.0,0.37620171]
[1737099452930,0.14214333,101540.0,101530.0,0.03316643]
[1737099454242,0.14214333,101540.0,101530.0,0.01540171]
[1737099454432,0.049249,101540.0,101530.0,0.43089934]
[1737099454638,0.049249,101540.0,101530.0,0.42545471]
[1737099454948,0.14214333,101540.0,101530.0,0.43089913]
[1737099455248,0.14214333,101540.0,101530.0,0.44321734]
[1737099455434,0.14214333,101540.0,101530.0,0.43089913]
[1737099455641,0.14214333,101540.0,101530.0,0.44321427]
[1737099456033,0.14214333,101540.0,101530.0,0.43089607]
[1737099456239,0.14214333,101540.0,101530.0,0.44321408]
[1737099456539,0.049249,101540.0,101530.0,0.44321408]
[1737099456932,0.14214333,101540.0,101530.0,0.37620171]
[1737099457349,0.14214333,101540.0,101530.0,0.01540171]
[1737099460150,0.14214333,101540.0,101530.0,0.03314848]
[1737099460754,0.14214333,101540.0,101530.0,0.03315066]
[1737099461046,0.14214333,101540.0,101530.0,0.01540171]
[1737099461254,0.14214333,101540.0,101530.0,0.0331507]
[1737099462656,0.14214333,101540.0,101530.0,0.03315063]
[1737099464753,0.14214333,101540.0,101530.0,0.0331516]
[1737099465155,0.14214333,101540.0,101530.0,0.01540171]
[1737099465354,0.50294333,101540.0,101530.0,0.01540171]
[1737099465558,0.049253,101530.0,101520.0,0.78819494]
[1737099465758,0.14214733,101530.0,101520.0,0.78819494]
[1737099466153,0.14214733,101530.0,101520.0,0.80359436]
[1737099466844,0.14214733,101530.0,101520.0,0.62773286]
[1737099467047,0.14214733,101530.0,101520.0,0.63317131]
[1737099467249,0.14214733,101530.0,101520.0,0.62773286]
[1737099467659,0.14214733,101530.0,101520.0,0.6454892]
[1737099468761,0.14214733,101530.0,101520.0,0.64549192]
[1737099473760,0.14214733,101530.0,101520.0,0.11581192]
[1737099475564,0.1104215,101530.0,101520.0,0.11581192]
[1737099476864,0.1104215,101530.0,101520.0,0.11581209]
[1737099478256,0.1104215,101530.0,101520.0,0.47661209]
[1737099478459,0.1104215,101530.0,101520.0,0.11581209]
[1737099488371,0.1104215,101530.0,101520.0,0.11581685]
[1737099488870,0.1104215,101530.0,101520.0,0.10606341]
[1737099489264,0.1104215,101530.0,101520.0,0.03316341]
[1737099489468,0.1104215,101530.0,101510.0,0.5756615]
[1737099489469,0.65039,101530.0,101510.0,0.5756615]
[1737099489770,0.171595,101520.0,101510.0,0.18131295]
[1737099490268,0.171595,101520.0,101510.0,0.20903604]
[1737099490460,0.532395,101520.0,101510.0,0.19126322]
[1737099490660,0.532395,101520.0,101510.0,0.1758615]
[1737099491567,0.049263,101510.0,101500.0,0.8926159]
[1737099491768,0.1104315,101510.0,101500.0,0.91039722]
[1737099492178,0.1104315,101510.0,101500.0,1.31124411]
[1737099492375,0.1104315,101510.0,101500.0,1.31124398]
[1737099492678,0.1104315,101510.0,101500.0,0.77458248]
[1737099494375,0.1104315,101510.0,101500.0,0.77458076]
[1737099494971,0.1104315,101510.0,101500.0,0.7745801]
[1737099496483,0.1104315,101510.0,101500.0,0.77457279]
[1737099496667,0.1104315,101510.0,101500.0,0.76225049]
[1737099498184,0.1104315,101510.0,101500.0,0.76224739]
[1737099498367,0.1104315,101510.0,101500.0,0.15522739]
[1737099498574,0.1716,101510.0,101500.0,0.14978129]
[1737099498774,0.1104315,101510.0,101500.0,0.14978129]
[1737099499181,0.1104315,101510.0,101500.0,0.22538129]
[1737099503301,0.1104315,101510.0,101500.0,0.14978129]
[1737099505803,0.4712315,101510.0,101500.0,0.14978129]
[1737099507104,0.1104315,101510.0,101500.0,0.14978129]
[1737099508202,0.4712315,101510.0,101500.0,0.14978129]
[1737099508607,0.1104315,101510.0,101500.0,0.14978129]
[1737099510107,0.049263,101510.0,101500.0,0.15522152]
[1737099510312,0.1104315,101510.0,101500.0,0.24604395]
[1737099510512,0.1104315,101510.0,101500.0,0.22828129]
[1737099510707,0.1104315,101510.0,101500.0,0.23373679]
[1737099510901,0.4712315,101510.0,101500.0,0.22828129]
[1737099511404,0.1104315,101510.0,101500.0,0.22828129]
[1737099511606,0.1716,101510.0,101500.0,0.22828129]
[1737099512218,0.1716,101510.0,101500.0,0.23373954]
[1737099512514,0.5324,101510.0,101500.0,0.21854689]
[1737099513614,0.5324,101510.0,101500.0,0.19390265]
[1737099514313,0.5324,101510.0,101500.0,0.1785]
[1737099516103,0.1716,101510.0,101500.0,0.1785]
[1737099517613,0.1716,101510.0,101500.0,0.2185492]
[1737099518310,0.1716,101510.0,101500.0,0.22402419]
[1737099518619,0.049263,101510.0,101500.0,0.22402419]
[1737099518815,0.1104315,101510.0,101500.0,0.23634701]
[1737099519115,0.1104315,101510.0,101500.0,0.23634693]
[1737099519811,0.1716,101510.0,101500.0,0.23634693]
[1737099520115,0.1716,101510.0,101500.0,0.23634725]
[1737099521209,0.5324,101510.0,101500.0,0.2185492]
[1737099521606,0.5324,101510.0,101500.0,0.1785]
[1737099523218,0.410063,101510.0,101500.0,0.1]
[1737099523518,0.5324,101510.0,101500.0,0.1]
[1737099525116,0.5324,101510.0,101500.0,0.10552239]
[1737099525717,0.5324,101510.0,101500.0,0.1]
[1737099526319,0.27429143,101520.0,101500.0,0.53981459]
[1737099526637,0.26439984,101520.0,101510.0,0.5083315]
[1737099526816,0.52818011,101530.0,101510.0,0.55470469]
[1737099527017,0.25489057,101540.0,101520.0,0.5527265]
[1737099527323,0.0611685,101530.0,101520.0,0.57056174]
[1737099527827,0.0611685,101530.0,101520.0,0.52130374]
[1737099528418,0.1104215,101530.0,101520.0,0.52130374]
[1737099529419,0.049253,101530.0,101520.0,0.46013524]
[1737099530825,0.14244045,101540.0,101520.0,0.60258069]
[1737099531029,0.14244045,101540.0,101530.0,0.0408]
[1737099538132,0.09319145,101540.0,101530.0,0.090053]
[1737099538328,0.09319145,101540.0,101530.0,0.450853]
[1737099538924,0.31511441,101560.0,101540.0,0.049249]
[1737099539129,0.00147761,101560.0,101550.0,0.410044]
[1737099539322,0.00147761,101560.0,101550.0,0.52108121]
[1737099539521,0.09319145,101560.0,101550.0,0.42788976]
[1737099539934,0.14243045,101560.0,101550.0,0.06708976]
[1737099540433,0.14243045,101560.0,101550.0,0.00552967]
[1737099540833,0.14243045,101560.0,101540.0,0.6685095]
[1737099541027,0.09319145,101550.0,101540.0,0.6863626]
[1737099541229,0.14243045,101560.0,101540.0,0.6964387]
[1737099541427,0.09319145,101550.0,101540.0,0.6964387]
[1737099541730,0.14243045,101560.0,101540.0,0.6964387]
[1737099541934,0.14243045,101560.0,101540.0,0.68412239]
[1737099542138,0.14243045,101560.0,101550.0,0.3608]
[1737099549642,0.14243045,101560.0,101550.0,0.410044]
[1737099549833,0.14243045,101560.0,101550.0,0.450244]
[1737099550433,0.53359142,101580.0,101550.0,0.450244]
[1737099550434,0.48436242,101580.0,101550.0,0.450244]
[1737099550635,0.14242645,101570.0,101560.0,0.049239]
[1737099551041,0.02030355,101580.0,101560.0,0.49289145]
[1737099551254,0.00147727,101590.0,101580.0,0.049229]
[1737099551439,0.00147727,101590.0,101580.0,0.410029]
[1737099551743,0.14389272,101590.0,101580.0,0.3608]
[1737099551935,0.14389272,101590.0,101580.0,0.4022]
[1737099552136,0.05070127,101590.0,101580.0,0.4022]
[1737099552332,0.14389272,101590.0,101580.0,0.4022]
[1737099554351,0.05070127,101590.0,101580.0,0.451429]
[1737099554648,0.05070127,101590.0,101580.0,0.530629]
[1737099555538,0.00147727,101590.0,101580.0,0.530629]
[1737099557436,0.09466872,101590.0,101580.0,0.530629]
[1737099557946,0.00147727,101590.0,101580.0,0.53614378]
[1737099558144,0.00147727,101590.0,101580.0,0.62932906]
[1737099558348,0.00147727,101590.0,101580.0,0.53613761]
[1737099558645,0.14389272,101590.0,101580.0,0.49763761]
[1737099560037,0.14389272,101590.0,101580.0,0.492129]
[1737099560337,0.14241545,101590.0,101580.0,0.49763196]
[1737099562146,0.14241545,101590.0,101580.0,0.49763082]
[1737099563848,0.049224,101590.0,101580.0,0.49763082]
[1737099564242,0.049224,101590.0,101580.0,0.49763869]
[1737099564650,0.049224,101590.0,101580.0,0.90876076]
[1737099565941,0.049224,101590.0,101580.0,1.00195221]
[1737099566140,0.049224,101590.0,101580.0,0.82609071]
[1737099566341,0.13569145,101600.0,101580.0,0.83841268]
[1737099566342,0.09319145,101600.0,101580.0,0.83841268]
[1737099566647,0.04922,101600.0,101590.0,0.049223]
[1737099566848,0.04922,101600.0,101590.0,0.05474282]
[1737099567354,0.04922,101600.0,101590.0,0.59134082]
[1737099567549,0.04922,101600.0,101590.0,0.41554367]
[1737099568150,0.17599145,101610.0,101590.0,0.41554367]
[1737099568347,0.22520745,101610.0,101590.0,0.50873512]
[1737099568653,0.22520745,101610.0,101590.0,0.41554367]
[1737099568859,0.41090918,101620.0,101600.0,0.50321045]
[1737099568860,0.55331163,101620.0,101600.0,0.50321045]
[1737099569045,0.36227693,101630.0,101620.0,0.04921]
[1737099569046,0.00147693,101630.0,101620.0,0.04921]
[1737099569546,0.14387338,101630.0,101620.0,0.0547136]
[1737099569750,0.14387338,101630.0,101620.0,0.23054837]
[1737099570054,0.14387338,101630.0,101620.0,0.18133837]
[1737099570449,0.22557338,101630.0,101620.0,0.18133837]
[1737099570753,0.22557338,101630.0,101620.0,0.23994997]
[1737099571662,0.22557338,101630.0,101620.0,0.0055036]
[1737099572354,0.22557338,101630.0,101620.0,0.00549472]
[1737099572759,0.22557338,101630.0,101620.0,0.18109134]
[1737099572957,0.22557338,101630.0,101620.0,0.17559662]
[1737099573458,0.22557338,101630.0,101620.0,0.1810924]
[1737099573957,0.13238193,101630.0,101620.0,0.1810924]
[1737099574254,0.22557338,101630.0,101620.0,0.1810924]
[1737099575456,0.26697338,101630.0,101620.0,0.1810924]
[1737099576457,0.26697338,101630.0,101620.0,0.18109422]
[1737099578360,0.26697338,101630.0,101620.0,0.18109693]
[1737099580348,0.26697338,101630.0,101620.0,0.18107062]
[1737099581461,0.26697338,101630.0,101620.0,0.23992037]
[1737099583659,0.62777338,101630.0,101620.0,0.1813181]
[1737099585266,0.62777338,101630.0,101620.0,0.18131622]
[1737099586165,0.62777338,101630.0,101620.0,0.1758441]
[1737099595461,0.62777338,101630.0,101610.0,0.52750433]
[1737099595462,0.04921,101620.0,101610.0,0.52750433]
[1737099595667,0.5963929,101620.0,101610.0,0.47649422]
[1737099595971,0.50320145,101620.0,101610.0,0.47649422]
[1737099596364,0.50320145,101620.0,101610.0,0.56357846]
[1737099596566,0.50320145,101620.0,101610.0,0.08708424]
[1737099598678,0.50320145,101620.0,101610.0,0.0870787]
[1737099602580,0.50320145,101620.0,101610.0,0.0816]
[1737099607383,0.50320145,101620.0,101610.0,0.087081]
[1737099608185,0.50320145,101620.0,101610.0,0.0816]
[1737099608377,0.50320145,101620.0,101610.0,0.08708096]
[1737099609283,0.50320145,101620.0,101610.0,0.0816]
[1737099613386,0.04921,101620.0,101610.0,0.14265696]
[1737099613685,0.11026696,101620.0,101610.0,0.5089478]
[1737099613870,0.11026696,101620.0,101610.0,0.5212568]
[1737099614188,0.11026696,101620.0,101610.0,0.52125672]
[1737099615383,0.04921,101620.0,101610.0,0.46019976]
[1737099616088,0.04921,101620.0,101610.0,0.46021483]
[1737099616390,0.14224195,101620.0,101610.0,0.46021483]
[1737099617292,0.14224195,101620.0,101610.0,0.09941483]
[1737099620096,0.14224195,101620.0,101610.0,0.09941465]
[1737099621692,0.14224195,101620.0,101610.0,0.46021465]
[1737099622085,0.14224195,101620.0,101610.0,0.46021467]
[1737099624206,0.14224195,101620.0,101610.0,0.09941467]
[1737099628198,0.14224195,101620.0,101610.0,0.09941485]
[1737099628593,0.14224195,101620.0,101610.0,0.09941486]
[1737099630200,0.14224195,101620.0,101610.0,0.09943765]
[1737099630596,0.14224195,101620.0,101610.0,0.10943338]
[1737099633194,0.14224195,101620.0,101610.0,0.0971243]
[1737099633799,0.14224195,101620.0,101610.0,0.08712857]
[1737099634201,0.14224195,101620.0,101610.0,0.09943767]
[1737099635406,0.11027169,101620.0,101610.0,0.09943767]
[1737099636101,0.17133338,101620.0,101610.0,0.09943767]
[1737099636298,0.04921,101620.0,101610.0,0.52129944]
[1737099636497,0.05068293,101630.0,101610.0,0.63157113]
[1737099636803,0.049201,101640.0,101620.0,0.56813038]
[1737099637005,0.39034424,101650.0,101620.0,0.56813038]
[1737099637006,0.39034424,101650.0,101630.0,1.13130838]
[1737099637310,0.20575479,101650.0,101640.0,0.51892338]
[1737099637501,0.05897899,101660.0,101640.0,0.56520374]
[1737099637803,0.23662449,101670.0,101650.0,0.54285669]
[1737099638106,0.28581049,101670.0,101660.0,0.42186169]
[1737099638310,0.05066216,101670.0,101660.0,0.48845195]
[1737099638603,0.00147616,101670.0,101660.0,0.54994418]
[1737099638801,0.23514833,101680.0,101670.0,0.049186]
[1737099639099,0.23514833,101680.0,101670.0,0.47104769]
[1737099639301,0.15064764,101700.0,101680.0,0.049179]
[1737099639505,0.10147564,101700.0,101690.0,0.54045141]
[1737099641008,0.1,101700.0,101690.0,0.54045141]
[1737099641714,0.05890306,101720.0,101700.0,0.049167]
[1737099642009,0.05890306,101720.0,101700.0,0.50284241]
[1737099645108,0.049157,101730.0,101710.0,1.06634141]
[1737099645509,0.049157,101730.0,101720.0,0.3608]
[1737099645911,0.049157,101730.0,101720.0,0.45367541]
[1737099646208,0.049157,101730.0,101720.0,0.3608]
[1737099646801,0.049157,101730.0,101720.0,0.48897541]
[1737099647209,0.049157,101730.0,101720.0,0.3961]
[1737099650215,0.45515069,101740.0,101720.0,0.3961]
[1737099650712,0.049158,101730.0,101720.0,0.3961]
[1737099651110,0.049161,101720.0,101710.0,0.9243]
[1737099651312,0.14203641,101720.0,101710.0,0.5635]
[1737099651714,0.049161,101720.0,101710.0,0.5635]
[1737099652317,0.049161,101720.0,101710.0,0.65637541]
[1737099652506,0.049161,101720.0,101710.0,1.06634141]
[1737099653516,0.52615069,101740.0,101710.0,1.06634141]
[1737099653715,0.52615069,101740.0,101720.0,0.3608]
[1737099653716,0.04916,101730.0,101720.0,0.3608]
[1737099653916,0.52615069,101740.0,101720.0,0.49127541]
[1737099654106,0.04916,101730.0,101720.0,0.49127541]
[1737099654512,0.04916,101730.0,101720.0,0.54043641]
[1737099655911,0.04916,101730.0,101720.0,0.447561]
[1737099659510,0.04916,101730.0,101720.0,0.54043641]
[1737099663722,0.00147528,101740.0,101720.0,0.77191624]
[1737099664021,0.05062728,101740.0,101730.0,0.14203241]
[1737099664721,0.05062728,101740.0,101730.0,0.50283241]
[1737099664927,0.049143,101760.0,101740.0,0.049149]
[1737099665223,0.049143,101760.0,101740.0,0.58177038]
[1737099666124,0.049143,101760.0,101740.0,0.60262021]
[1737099666318,0.409934,101780.0,101760.0,0.049142]